fUST/lending_fUST_20240224
["ID","MTS","AMOUNT","RATE_DAILY","PERIOD"]
[315045000,1708768239054,-500.0,0.00020185,2]
[315045001,1708768239063,-329.78104542,0.00020185,2]
[315045002,1708768239073,-500.0,0.00020185,2]
[315045003,1708768239082,-500.0,0.00020185,2]
[315045004,1708768239092,-486.77122546,0.00020185,2]
[315045005,1708768239101,-527.17924194,0.00020185,2]
[315045006,1708768239111,-500.0,0.00020185,2]
[315045007,1708768239120,-5000.0,0.00020186,2]
[315045008,1708768239129,-50000.0,0.00020186,2]
[315045009,1708768239137,-5000.0,0.00020186,2]
[315045010,1708768239147,-50000.0,0.00020186,2]
[315045011,1708768239156,-5000.0,0.00020186,2]
[315045012,1708768239165,-31363.62367747,0.00020186,2]
[315045013,1708768239178,-4616.11665979,0.00020186,2]
[315045014,1708768239190,-5102.63504133,0.00020186,2]
[315045015,1708768239438,18831.2656114,0.00017658,2]
[315045022,1708768241063,-979.48832481,0.00020025,2]
[315045047,1708768244494,-674.45,0.00019178,2]
[315045048,1708768244503,-674.45,0.00019452,2]
[315045049,1708768244513,-210.59304416,0.00019726,2]
[315045050,1708768244526,-463.85695584,0.00019726,2]
[315045051,1708768244535,-674.45,0.0002,2]
[315045052,1708768244545,-371.95304416,0.00020025,2]
[315045053,1708768244558,-596.31897244,0.00020025,2]
[315045054,1708768244570,-554.49504775,0.00020025,2]
[315045060,1708768246196,-38334.03609588,0.00020025,2]
[315045069,1708768317147,-294.54,0.00030137,120]
[315045076,1708768589815,250.0,0.00017984,2]
[315045078,1708768608243,16741.2122698,0.00017984,2]
[315045079,1708768612324,330.506109,0.00017984,2]
[315045080,1708768633714,14886.9368189,0.00017984,2]
[315045081,1708768673583,24900.0,0.00017984,2]
[315045082,1708768711594,164.67932963,0.00017894,2]
[315045083,1708768725752,2011.9220873,0.00018003,2]
[315045084,1708768737143,1362.7433496,0.00018003,2]
[315045085,1708768777856,443.20402944,0.00014763,2]
[315045086,1708768799937,443.20402944,0.00014748,2]
[315045088,1708768823949,230.90929934,0.00014723,2]
[315045089,1708768842008,230.90929934,0.00014792,2]
[315045090,1708768856861,3000.0,0.00017953,2]
[315045091,1708768864052,230.90929934,0.00014716,2]
[315045092,1708768881971,230.90929934,0.00014792,2]
[315045093,1708768901957,230.90929934,0.00014716,2]
[315045094,1708768918105,230.90929934,0.00014701,2]
[315045095,1708768934033,230.90929934,0.00014793,2]
[315045097,1708768954030,230.90929934,0.00014777,2]
[315045098,1708768972034,230.90929934,0.00014762,2]
[315045099,1708768988056,226.52252587,0.00014747,2]
[315045100,1708769162010,290.046624,0.00017934,2]
[315045102,1708769322208,416.8222187,0.00017991,2]
[315045109,1708769393458,155.83992726,0.00017901,2]
[315045133,1708769431941,-155.02170304,0.00018374,2]
[315045134,1708769431951,-602.9002544,0.00018375,2]
[315045135,1708769431961,-4697.79543124,0.00018376,2]
[315045136,1708769431971,-3957.96600162,0.00018377,2]
[315045137,1708769431980,-295.40221259,0.00018383,2]
[315045138,1708769431989,-640.03091446,0.00018384,2]
[315045139,1708769431998,-534.17616185,0.00019074,2]
[315045140,1708769432007,-724.39,0.00019178,2]
[315045141,1708769432017,-500.0,0.00019178,2]
[315045142,1708769432026,-500.0,0.00019178,2]
[315045143,1708769432035,-1129.66,0.00019178,2]
[315045144,1708769432044,-500.0,0.00019178,2]
[315045145,1708769432053,-901.26,0.00019178,2]
[315045146,1708769432062,-166.666666,0.00019178,2]
[315045147,1708769432073,-920.40513939,0.0001945,2]
[315045148,1708769432083,-608.47,0.0001945,2]
[315045149,1708769432092,-500.0,0.0001945,2]
[315045150,1708769432102,-500.0,0.0001945,2]
[315045151,1708769432111,-172.04761987,0.0001945,2]
[315045152,1708769432120,-500.0,0.0001945,2]
[315045153,1708769432129,-626.28,0.0001945,2]
[315045154,1708769432139,-4746.69,0.0001945,2]
[315045155,1708769432148,-500.0,0.0001945,2]
[315045156,1708769432157,-594.91,0.0001945,2]
[315045157,1708769432168,-1067.09,0.00019451,2]
[315045158,1708769432177,-5614.09,0.00019451,2]
[315045159,1708769432186,-500.0,0.00019451,2]
[315045160,1708769432195,-608.92,0.00019451,2]
[315045161,1708769432205,-500.0,0.00019451,2]
[315045162,1708769432214,-500.0,0.00019451,2]
[315045163,1708769432224,-500.0,0.00019451,2]
[315045164,1708769432233,-3239.02,0.00019451,2]
[315045165,1708769432242,-500.0,0.00019451,2]
[315045166,1708769432250,-500.0,0.00019451,2]
[315045167,1708769432259,-1125.89,0.00019451,2]
[315045168,1708769432268,-2094.93,0.00019451,2]
[315045169,1708769432277,-2319.82,0.00019451,2]
[315045170,1708769432286,-767.92,0.00019451,2]
[315045171,1708769432295,-626.06,0.00019451,2]
[315045172,1708769432304,-644.9,0.00019451,2]
[315045173,1708769432313,-536.86,0.00019451,2]
[315045174,1708769432322,-808.4,0.00019451,2]
[315045175,1708769432331,-724.39,0.00019452,2]
[315045176,1708769432340,-500.0,0.00019452,2]
[315045177,1708769432350,-500.0,0.00019452,2]
[315045178,1708769432360,-1129.66,0.00019452,2]
[315045179,1708769432371,-500.0,0.00019452,2]
[315045180,1708769432381,-901.26,0.00019452,2]
[315045181,1708769432391,-186.48390191,0.00019543,2]
[315045182,1708769432400,-9583.33061897,0.00019616,2]
[315045183,1708769432410,-166.666666,0.00019627,2]
[315045184,1708769432419,-153.75,0.00019645,3]
[315045185,1708769432428,-43742.93846554,0.00019714,3]
[315045190,1708769439149,-1022.62,0.0001945,2]
[315045191,1708769439159,-7585.33153446,0.00019714,3]
[315045192,1708769439169,-608.47,0.00019724,2]
[315045194,1708769439178,-500.0,0.00019724,2]
[315045195,1708769439187,-500.0,0.00019724,2]
[315045197,1708769439196,-500.0,0.00019724,2]
[315045199,1708769439206,-626.28,0.00019724,2]
[315045201,1708769439215,-4746.69,0.00019724,2]
[315045203,1708769439225,-500.0,0.00019724,2]
[315045205,1708769439235,-594.91,0.00019724,2]
[315045206,1708769439244,-1022.62,0.00019724,2]
[315045207,1708769439253,-2786.53391955,0.00019725,2]
[315045208,1708769439268,-2827.55608045,0.00019725,2]
[315045210,1708769439277,-557.64745766,0.00019725,2]
[315045212,1708769439286,-608.92,0.00019725,2]
[315045213,1708769439295,-500.0,0.00019725,2]
[315045216,1708769439304,-500.0,0.00019725,2]
[315045218,1708769439314,-500.0,0.00019725,2]
[315045220,1708769439323,-3239.02,0.00019725,2]
[315045222,1708769439333,-500.0,0.00019725,2]
[315045225,1708769439342,-500.0,0.00019725,2]
[315045227,1708769439352,-1125.89,0.00019725,2]
[315045228,1708769439362,-2094.93,0.00019725,2]
[315045230,1708769439374,-2319.82,0.00019725,2]
[315045232,1708769439383,-767.92,0.00019725,2]
[315045234,1708769439393,-626.06,0.00019725,2]
[315045236,1708769439401,-644.9,0.00019725,2]
[315045238,1708769439411,-536.86,0.00019725,2]
[315045240,1708769439420,-808.4,0.00019725,2]
[315045242,1708769439429,-724.39,0.00019726,2]
[315045244,1708769439438,-500.0,0.00019726,2]
[315045246,1708769439448,-500.0,0.00019726,2]
[315045248,1708769439458,-1129.66,0.00019726,2]
[315045250,1708769439467,-500.0,0.00019726,2]
[315045251,1708769439476,-901.26,0.00019726,2]
[315045252,1708769439485,-608.47,0.00019998,2]
[315045253,1708769439494,-565.79,0.00019998,2]
[315045254,1708769439503,-500.0,0.00019998,2]
[315045255,1708769439513,-500.0,0.00019998,2]
[315045256,1708769439522,-626.28,0.00019998,2]
[315045257,1708769439531,-4746.69,0.00019998,2]
[315045258,1708769439540,-500.0,0.00019998,2]
[315045259,1708769439550,-594.91,0.00019998,2]
[315045260,1708769439559,-1022.62,0.00019998,2]
[315045261,1708769439568,-5614.09,0.00019999,2]
[315045262,1708769439577,-608.92,0.00019999,2]
[315045263,1708769439585,-500.0,0.00019999,2]
[315045264,1708769439594,-500.0,0.00019999,2]
[315045265,1708769439604,-500.0,0.00019999,2]
[315045266,1708769439612,-3239.02,0.00019999,2]
[315045267,1708769439621,-500.0,0.00019999,2]
[315045268,1708769439630,-500.0,0.00019999,2]
[315045269,1708769439639,-1125.89,0.00019999,2]
[315045270,1708769439648,-2094.93,0.00019999,2]
[315045271,1708769439657,-244.35656189,0.00019999,2]
[315045272,1708769439670,-2075.46343811,0.00019999,2]
[315045273,1708769439679,-767.92,0.00019999,2]
[315045274,1708769439688,-626.06,0.00019999,2]
[315045275,1708769439697,-644.9,0.00019999,2]
[315045276,1708769439706,-536.86,0.00019999,2]
[315045277,1708769439715,-808.4,0.00019999,2]
[315045278,1708769439724,-724.39,0.0002,2]
[315045279,1708769439735,-415.24960531,0.0002,2]
[315045289,1708769441056,-603.66,0.0001945,2]
[315045290,1708769441067,-84.75039469,0.0002,2]
[315045291,1708769441076,-67.76960531,0.0002,2]
[315045301,1708769443922,-547.99,0.00019451,2]
[315045302,1708769443932,-307.62498849,0.00019724,2]
[315045303,1708769443944,-296.03501151,0.00019724,2]
[315045304,1708769443953,-547.99,0.00019725,2]
[315045305,1708769443962,-603.66,0.00019998,2]
[315045306,1708769443972,-547.99,0.00019999,2]
[315045307,1708769443982,-432.23039469,0.0002,2]
[315045308,1708769443991,-1129.66,0.0002,2]
[315045309,1708769444001,-446.1833718,0.0002,2]
[315045336,1708770033510,10000.0,0.0001812,2]
[315045337,1708770051953,2952.96,0.0001812,2]
[315045338,1708770052469,2321.8791867,0.00018058,2]
[315045341,1708770214811,1649.9558858,0.00018055,2]
[315045343,1708770423625,250.0,0.00017759,2]
[315045423,1708770638212,-4697.79543124,0.00018162,2]
[315045424,1708770638222,-702.11349839,0.00018163,2]
[315045425,1708770638233,-45.22864061,0.00018163,2]
[315045426,1708770638243,-19123.23526804,0.00018199,2]
[315045427,1708770638255,-5776.76473196,0.00018199,2]
[315045429,1708770638264,-2549.55507,0.00018207,2]
[315045430,1708770638274,-6139.48793692,0.00018222,2]
[315045432,1708770638287,-2614.24406518,0.00018222,2]
[315045434,1708770638296,-215.51483399,0.00019178,2]
[315045438,1708770638308,-5887.35516601,0.00019178,2]
[315045441,1708770638317,-781.98,0.00019178,2]
[315045444,1708770638326,-500.0,0.00019178,2]
[315045447,1708770638336,-166.666666,0.00019178,2]
[315045450,1708770638345,-481.53,0.00019419,3]
[315045453,1708770638354,-61625.6,0.00019439,3]
[315045456,1708770638364,-500.0,0.00019448,2]
[315045458,1708770638373,-616.09,0.00019448,2]
[315045459,1708770638383,-500.0,0.00019448,2]
[315045461,1708770638392,-621.22,0.00019448,2]
[315045463,1708770638401,-500.0,0.00019448,2]
[315045465,1708770638410,-536.24,0.00019448,2]
[315045467,1708770638419,-522.32341698,0.00019448,2]
[315045469,1708770638429,-6186.69,0.00019448,2]
[315045471,1708770638439,-500.0,0.00019448,2]
[315045473,1708770638448,-500.0,0.00019448,2]
[315045475,1708770638458,-500.0,0.00019448,2]
[315045477,1708770638468,-500.0,0.00019448,2]
[315045479,1708770638478,-500.0,0.00019448,2]
[315045481,1708770638487,-596.76,0.00019448,2]
[315045483,1708770638497,-772.24,0.00019448,2]
[315045485,1708770638507,-913.67,0.00019448,2]
[315045487,1708770638516,-653.1,0.00019448,2]
[315045489,1708770638525,-500.0,0.00019449,2]
[315045491,1708770638535,-500.0,0.00019449,2]
[315045493,1708770638544,-500.0,0.00019449,2]
[315045495,1708770638553,-500.0,0.00019449,2]
[315045497,1708770638562,-500.4246728,0.00019449,2]
[315045499,1708770638572,-165.62,0.00019449,2]
[315045501,1708770638581,-1237.67,0.00019449,2]
[315045503,1708770638590,-662.74,0.00019449,2]
[315045505,1708770638599,-764.14,0.00019449,2]
[315045507,1708770638608,-500.0,0.00019449,2]
[315045509,1708770638618,-3936.22,0.00019449,2]
[315045511,1708770638628,-576.3,0.00019449,2]
[315045512,1708770638637,-152.9,0.00019449,2]
[315045514,1708770638646,-1365.15,0.00019449,2]
[315045516,1708770638656,-2529.93,0.00019449,2]
[315045518,1708770638665,-500.0,0.00019449,2]
[315045520,1708770638675,-2675.31,0.00019449,2]
[315045521,1708770638685,-1003.92,0.00019449,2]
[315045522,1708770638694,-761.7,0.00019449,2]
[315045523,1708770638704,-500.0,0.00019449,2]
[315045524,1708770638713,-500.0,0.00019449,2]
[315045525,1708770638723,-1102.57,0.00019449,2]
[315045526,1708770638734,-500.0,0.0001945,2]
[315045527,1708770638744,-500.0,0.0001945,2]
[315045528,1708770638754,-500.0,0.0001945,2]
[315045529,1708770638763,-1070.49,0.0001945,2]
[315045530,1708770638773,-500.0,0.0001945,2]
[315045531,1708770638782,-1024.17,0.0001945,2]
[315045532,1708770638792,-6102.87,0.00019452,2]
[315045533,1708770638802,-781.98,0.00019452,2]
[315045534,1708770638811,-500.0,0.00019452,2]
[315045535,1708770638821,-1687.99957895,0.00019467,2]
[315045536,1708770638830,-1273.40319113,0.00019468,2]
[315045537,1708770638840,-205.88902431,0.00019479,2]
[315045538,1708770638851,-205.88902431,0.00019482,2]
[315045539,1708770638861,-1273.40319113,0.00019483,2]
[315045540,1708770638874,-1273.40319113,0.00019484,2]
[315045541,1708770638884,-1687.99957895,0.00019484,2]
[315045542,1708770638894,-205.88902431,0.00019485,2]
[315045543,1708770638903,-1687.99957895,0.00019489,2]
[315045544,1708770638913,-166.666666,0.00019627,2]
[315045545,1708770638922,-153.0,0.000197,2]
[315045546,1708770638931,-960.63749504,0.000197,2]
[315045547,1708770638940,-960.63749504,0.000197,2]
[315045548,1708770638950,-960.63749504,0.000197,2]
[315045549,1708770638959,-153.9194835,0.000197,2]
[315045550,1708770638968,-155.31979024,0.000197,2]
[315045551,1708770638979,-155.31979024,0.000197,2]
[315045552,1708770638988,-155.31979024,0.000197,2]
[315045553,1708770638999,-1273.40319111,0.000197,2]
[315045554,1708770639008,-1273.40319111,0.000197,2]
[315045555,1708770639017,-1273.40319111,0.000197,2]
[315045556,1708770639027,-153.0,0.000197,2]
[315045557,1708770639037,-616.09,0.00019722,2]
[315045558,1708770639046,-621.22,0.00019722,2]
[315045559,1708770639055,-500.0,0.00019722,2]
[315045560,1708770639065,-536.24,0.00019722,2]
[315045561,1708770639075,-6186.69,0.00019722,2]
[315045562,1708770639085,-500.0,0.00019722,2]
[315045563,1708770639095,-500.0,0.00019722,2]
[315045564,1708770639104,-500.0,0.00019722,2]
[315045565,1708770639114,-500.0,0.00019722,2]
[315045566,1708770639124,-596.76,0.00019722,2]
[315045567,1708770639134,-772.24,0.00019722,2]
[315045568,1708770639143,-913.67,0.00019722,2]
[315045569,1708770639152,-653.1,0.00019722,2]
[315045570,1708770639162,-500.0,0.00019723,2]
[315045571,1708770639172,-500.0,0.00019723,2]
[315045572,1708770639182,-1237.67,0.00019723,2]
[315045573,1708770639191,-662.74,0.00019723,2]
[315045574,1708770639201,-764.14,0.00019723,2]
[315045575,1708770639211,-538.31,0.00019723,2]
[315045576,1708770639221,-3936.22,0.00019723,2]
[315045577,1708770639230,-576.3,0.00019723,2]
[315045578,1708770639240,-1365.15,0.00019723,2]
[315045579,1708770639253,-2529.93,0.00019723,2]
[315045580,1708770639262,-626.98735755,0.00019723,2]
[315045581,1708770639273,-2675.31,0.00019723,2]
[315045582,1708770639283,-1003.92,0.00019723,2]
[315045583,1708770639293,-761.7,0.00019723,2]
[315045584,1708770639303,-500.0,0.00019723,2]
[315045585,1708770639313,-1102.57,0.00019723,2]
[315045586,1708770639323,-500.0,0.00019724,2]
[315045587,1708770639333,-500.0,0.00019724,2]
[315045588,1708770639343,-1070.49,0.00019724,2]
[315045589,1708770639353,-500.0,0.00019724,2]
[315045590,1708770639362,-1024.17,0.00019724,2]
[315045591,1708770639372,-6102.87,0.00019726,2]
[315045592,1708770639381,-781.98,0.00019726,2]
[315045593,1708770639391,-500.0,0.00019726,2]
[315045594,1708770639401,-306.6461375,0.00019863,2]
[315045595,1708770639410,-154.9866991,0.00019863,2]
[315045596,1708770639420,-154.1542552,0.00019863,2]
[315045597,1708770639430,-203.9948389,0.00019863,2]
[315045598,1708770639440,-29080.95293185,0.000199,2]
[315045599,1708770639449,-6083.091706,0.0001998,2]
[315045600,1708770639459,-616.09,0.00019996,2]
[315045601,1708770639469,-621.22,0.00019996,2]
[315045602,1708770639479,-500.0,0.00019996,2]
[315045603,1708770639489,-536.24,0.00019996,2]
[315045604,1708770639501,-6186.69,0.00019996,2]
[315045605,1708770639511,-500.0,0.00019996,2]
[315045606,1708770639521,-500.0,0.00019996,2]
[315045607,1708770639530,-500.0,0.00019996,2]
[315045608,1708770639539,-500.0,0.00019996,2]
[315045609,1708770639549,-596.76,0.00019996,2]
[315045610,1708770639558,-772.24,0.00019996,2]
[315045611,1708770639569,-913.67,0.00019996,2]
[315045612,1708770639579,-653.1,0.00019996,2]
[315045613,1708770639590,-500.0,0.00019997,2]
[315045614,1708770639599,-500.0,0.00019997,2]
[315045615,1708770639609,-1237.67,0.00019997,2]
[315045616,1708770639618,-662.74,0.00019997,2]
[315045617,1708770639628,-764.14,0.00019997,2]
[315045618,1708770639637,-3936.22,0.00019997,2]
[315045619,1708770639647,-576.3,0.00019997,2]
[315045620,1708770639656,-1365.15,0.00019997,2]
[315045621,1708770639666,-2529.93,0.00019997,2]
[315045622,1708770639675,-2675.31,0.00019997,2]
[315045623,1708770639684,-1003.92,0.00019997,2]
[315045624,1708770639693,-761.7,0.00019997,2]
[315045625,1708770639703,-150.20157181,0.00019997,2]
[315045626,1708770639712,-1102.57,0.00019997,2]
[315045627,1708770639726,-500.0,0.00019998,2]
[315045628,1708770639735,-500.0,0.00019998,2]
[315045629,1708770639745,-155.97763514,0.00019998,2]
[315045630,1708770639756,-1070.49,0.00019998,2]
[315045631,1708770639766,-500.0,0.00019998,2]
[315045632,1708770639776,-1024.17,0.00019998,2]
[315045633,1708770639785,-75972.42539626,0.00019999,2]
[315045634,1708770639795,-1389.2207575,0.00019999,2]
[315045635,1708770639806,-500.0,0.00019999,2]
[315045636,1708770639815,-500.0,0.00019999,2]
[315045637,1708770639824,-500.0,0.00019999,2]
[315045638,1708770639833,-220.72841357,0.00019999,2]
[315045639,1708770639843,-500.0,0.00019999,2]
[315045640,1708770639853,-500.0,0.00019999,2]
[315045641,1708770639862,-500.0,0.00019999,2]
[315045642,1708770639871,-500.0,0.00019999,2]
[315045643,1708770639880,-185.40149345,0.00019999,2]
[315045644,1708770639890,-500.0,0.00019999,2]
[315045645,1708770639900,-500.0,0.00019999,2]
[315045646,1708770639910,-500.0,0.00019999,2]
[315045647,1708770639919,-500.0,0.00019999,2]
[315045648,1708770639929,-500.0,0.00019999,2]
[315045649,1708770639939,-338.2446078,0.00019999,2]
[315045650,1708770639948,-500.0,0.00019999,2]
[315045651,1708770639958,-538.58962097,0.00019999,2]
[315045652,1708770639967,-191.09197463,0.0002,2]
[315045653,1708770639978,-1162132.27022754,0.0002,2]
[315045658,1708770641397,-852.07720267,0.0002,2]
[315045659,1708770641409,-1000.1350345,0.0002,2]
[315045669,1708770643231,-179.84917799,0.00019448,2]
[315045671,1708770643240,-1222.7,0.00019449,2]
[315045672,1708770643250,-1020.65302973,0.00019723,2]
[315045673,1708770643262,-202.04697027,0.00019723,2]
[315045674,1708770643271,-4583.36392449,0.0002,2]
[315045710,1708770670917,191.09197463,0.00017759,2]
[315045711,1708770673597,217.050711,0.00021,30]
[315045712,1708770705171,1000.0,0.00021,21]
[315045713,1708770794456,-474.057541,0.00018996,2]
[315045714,1708770794490,-4697.79543124,0.00018999,2]
[315045715,1708770794523,-965.44435767,0.00019,2]
[315045716,1708770794559,-500.0,0.00019178,2]
[315045717,1708770794595,-514.69,0.00019178,2]
[315045718,1708770794630,-6016.66,0.00019178,2]
[315045719,1708770794664,-500.0,0.00019178,2]
[315045720,1708770794697,-792.17,0.00019178,2]
[315045721,1708770794731,-500.0,0.00019178,2]
[315045722,1708770794765,-6318.44,0.00019178,2]
[315045723,1708770794800,-500.0,0.00019178,2]
[315045724,1708770794833,-500.0,0.00019178,2]
[315045725,1708770794868,-611.06,0.00019178,2]
[315045726,1708770794901,-166.666666,0.00019178,2]
[315045727,1708770794934,-658.55,0.00019448,2]
[315045728,1708770794967,-500.0,0.00019448,2]
[315045729,1708770795000,-504.26,0.00019448,2]
[315045730,1708770795031,-435.90777223,0.00019449,2]
[315045731,1708770795064,-792.49,0.00019449,2]
[315045732,1708770795098,-4227.59,0.00019449,2]
[315045733,1708770795133,-500.0,0.00019449,2]
[315045734,1708770795166,-500.0,0.00019449,2]
[315045735,1708770795201,-1333.0,0.00019449,2]
[315045736,1708770795235,-500.0,0.00019449,2]
[315045737,1708770795270,-500.0,0.00019452,2]
[315045738,1708770795305,-514.69,0.00019452,2]
[315045739,1708770795339,-6016.66,0.00019452,2]
[315045740,1708770795460,-500.0,0.00019452,2]
[315045741,1708770795494,-792.17,0.00019452,2]
[315045742,1708770795528,-500.0,0.00019452,2]
[315045743,1708770795564,-6318.44,0.00019452,2]
[315045744,1708770795598,-500.0,0.00019452,2]
[315045745,1708770795634,-500.0,0.00019452,2]
[315045746,1708770795667,-611.06,0.00019452,2]
[315045747,1708770795701,-166.666666,0.00019627,2]
[315045748,1708770795735,-9351.53156586,0.00019696,3]
[315045749,1708770817099,-161.0995351,0.00018833,2]
[315045750,1708770817135,-500.0,0.00019178,2]
[315045751,1708770817173,-707.88,0.00019178,2]
[315045752,1708770817209,-2531.46,0.00019448,2]
[315045753,1708770817244,-254.29219889,0.00019449,2]
[315045754,1708770817278,-500.0,0.00019449,2]
[315045755,1708770817313,-729.96,0.00019449,2]
[315045756,1708770817347,-500.0,0.00019452,2]
[315045757,1708770817380,-707.88,0.00019452,2]
[315045758,1708770817414,-658.55,0.00019722,2]
[315045759,1708770817449,-504.26,0.00019722,2]
[315045760,1708770817484,-2531.46,0.00019722,2]
[315045761,1708770817518,-792.49,0.00019723,2]
[315045762,1708770817553,-3001.66826601,0.00019723,2]
[315045774,1708771540070,393.8801502,0.00017661,2]
[315045776,1708771563332,2265.5194549,0.00017813,2]
[315045778,1708771584733,710.842459,0.00017813,2]
[315045781,1708771630350,24900.0,0.00018036,2]
[315045824,1708771832368,-640.03091446,0.00018365,2]
[315045827,1708771832379,-40.54288553,0.00018366,2]
[315045961,1708771839522,-114.46331472,0.00018366,2]
[315045962,1708771839532,-4697.79543124,0.00019177,2]
[315045963,1708771839542,-500.0,0.00019178,2]
[315045964,1708771839551,-500.0,0.00019178,2]
[315045965,1708771839561,-500.0,0.00019178,2]
[315045968,1708771839708,-500.0,0.00019178,2]
[315045969,1708771839718,-500.4246728,0.00019178,2]
[315045970,1708771839728,-1042.23,0.00019178,2]
[315045971,1708771839738,-500.0,0.00019178,2]
[315045972,1708771839747,-499.09084534,0.00019178,2]
[315045973,1708771839756,-500.0,0.00019178,2]
[315045974,1708771839766,-500.0,0.00019178,2]
[315045975,1708771839775,-152.9,0.00019178,2]
[315045976,1708771839785,-1532.07,0.00019178,2]
[315045977,1708771839794,-718.38,0.00019178,2]
[315045978,1708771839805,-1407.26,0.00019178,2]
[315045979,1708771839814,-500.0,0.00019178,2]
[315045980,1708771839824,-500.0,0.00019178,2]
[315045981,1708771839834,-500.49581509,0.00019178,2]
[315045982,1708771839845,-500.0,0.00019178,2]
[315045983,1708771839854,-500.0,0.00019178,2]
[315045984,1708771839863,-500.0,0.00019178,2]
[315045985,1708771839873,-7224.28,0.00019178,2]
[315045986,1708771839883,-621.73,0.00019178,2]
[315045987,1708771839893,-500.0,0.00019178,2]
[315045988,1708771839903,-500.0,0.00019178,2]
[315045989,1708771839913,-500.0,0.00019178,2]
[315045990,1708771839922,-500.0,0.00019178,2]
[315045991,1708771839934,-6819.37,0.00019178,2]
[315045992,1708771839944,-500.0,0.00019178,2]
[315045993,1708771839953,-664.8,0.00019178,2]
[315045994,1708771839963,-500.0,0.00019178,2]
[315045995,1708771839973,-500.0,0.00019178,2]
[315045996,1708771839983,-500.0,0.00019178,2]
[315045997,1708771839992,-870.97,0.00019178,2]
[315045998,1708771840001,-500.0,0.00019178,2]
[315045999,1708771840010,-782.43,0.00019178,2]
[315046000,1708771840020,-500.0,0.00019178,2]
[315046001,1708771840029,-900.03,0.00019178,2]
[315046002,1708771840039,-165.62,0.00019178,2]
[315046003,1708771840048,-500.0,0.00019178,2]
[315046004,1708771840058,-166.666666,0.00019178,2]
[315046005,1708771840067,-165.50895379,0.00019342,2]
[315046006,1708771840077,-403.29599733,0.00019441,2]
[315046007,1708771840087,-70307.46,0.00019442,3]
[315046008,1708771840097,-639.13850757,0.00019448,2]
[315046009,1708771840107,-887.63,0.00019448,2]
[315046010,1708771840117,-500.0,0.00019448,2]
[315046011,1708771840126,-502.27376554,0.00019448,2]
[315046012,1708771840136,-785.23,0.00019448,2]
[315046013,1708771840146,-500.0,0.00019448,2]
[315046014,1708771840155,-859.94,0.00019448,2]
[315046015,1708771840165,-500.0,0.00019448,2]
[315046016,1708771840174,-675.59,0.00019448,2]
[315046017,1708771840183,-500.0,0.00019448,2]
[315046018,1708771840193,-2883.26,0.00019448,2]
[315046019,1708771840202,-502.22333209,0.00019448,2]
[315046020,1708771840211,-502.78381319,0.00019448,2]
[315046021,1708771840221,-3315.19,0.00019448,2]
[315046022,1708771840230,-500.0,0.00019448,2]
[315046023,1708771840239,-1174.56,0.00019448,2]
[315046024,1708771840249,-500.0,0.00019448,2]
[315046025,1708771840258,-1237.98,0.00019448,2]
[315046026,1708771840267,-500.0,0.00019449,2]
[315046027,1708771840277,-500.0,0.00019452,2]
[315046028,1708771840286,-500.0,0.00019452,2]
[315046029,1708771840296,-500.0,0.00019452,2]
[315046030,1708771840306,-1042.23,0.00019452,2]